fUST/lending_fUST_20240829
["ID","MTS","AMOUNT","RATE_DAILY","PERIOD"]
[336471666,1724861488411,-500.0,0.0002205,5]
[336471667,1724861488422,-500.0,0.0002205,5]
[336471668,1724861488432,-500.0,0.0002205,5]
[336471669,1724861488443,-2441.06,0.0002205,5]
[336471670,1724861488453,-555.08,0.0002205,5]
[336471671,1724861488462,-2445.65,0.0002205,5]
[336471672,1724861488472,-3605.34,0.0002205,5]
[336471673,1724861488482,-7804.01,0.0002205,5]
[336471674,1724861488492,-6989.42,0.0002205,5]
[336471675,1724861488502,-3432.15,0.0002205,5]
[336471676,1724861488512,-500.0,0.0002205,5]
[336471677,1724861488526,-931.19,0.0002205,5]
[336471678,1724861488548,-817.55,0.0002205,5]
[336471679,1724861488559,-500.0,0.0002205,5]
[336471680,1724861488569,-1715.86,0.0002205,5]
[336471681,1724861488579,-2215.78,0.0002205,5]
[336471682,1724861488590,-991.34,0.0002205,5]
[336471683,1724861488600,-1028.21,0.0002205,5]
[336471684,1724861488609,-1049.04,0.0002205,5]
[336471685,1724861488619,-500.0,0.0002205,5]
[336471686,1724861488629,-643.22852352,0.0002205,5]
[336471687,1724861488639,-1574.19,0.0002205,5]
[336471688,1724861488648,-1419.19,0.0002205,5]
[336471689,1724861488658,-500.0,0.0002205,5]
[336471690,1724861488668,-3455.34,0.0002205,5]
[336471691,1724861488678,-1220.18,0.0002205,5]
[336471692,1724861488689,-787.68,0.0002205,5]
[336471693,1724861488698,-1574.41,0.0002205,5]
[336471694,1724861488708,-1161.17,0.0002205,5]
[336471695,1724861488718,-1086.03,0.0002205,5]
[336471696,1724861488729,-2104.49,0.0002205,5]
[336471697,1724861488741,-500.0,0.0002205,5]
[336471698,1724861488751,-2447.77,0.0002205,5]
[336471699,1724861488761,-2050.11,0.0002205,5]
[336471700,1724861488771,-500.0,0.0002205,5]
[336471701,1724861488781,-1938.39,0.0002205,5]
[336471702,1724861488790,-341.78135092,0.0002205,5]
[336471703,1724861488800,-500.0,0.0002205,5]
[336471704,1724861488810,-3053.04,0.0002205,5]
[336471705,1724861488819,-500.0,0.0002205,5]
[336471706,1724861488828,-500.0,0.0002205,5]
[336471707,1724861488840,-500.0,0.0002205,5]
[336471708,1724861488851,-2059.73,0.0002205,5]
[336471709,1724861488860,-500.0,0.0002205,5]
[336471710,1724861488870,-1762.74,0.0002205,5]
[336471711,1724861488880,-500.0,0.0002205,5]
[336471712,1724861488890,-1881.79,0.00022051,5]
[336471713,1724861488901,-4789.79,0.00022051,5]
[336471714,1724861488911,-2011.7,0.00022051,5]
[336471715,1724861488921,-1624.46,0.00022051,5]
[336471716,1724861488931,-1132.43,0.00022051,5]
[336471717,1724861488942,-500.0,0.00022051,5]
[336471718,1724861488951,-500.0,0.0002207,2]
[336471719,1724861488961,-500.0,0.00022091,5]
[336471720,1724861488971,-1847.91,0.00022091,5]
[336471721,1724861488981,-1019.59,0.00022091,5]
[336471722,1724861488992,-1247.82,0.00022091,5]
[336471723,1724861489001,-1867.86,0.00022091,5]
[336471724,1724861489011,-2205.0,0.00022091,5]
[336471725,1724861489027,-500.0,0.00022091,5]
[336471726,1724861489036,-1306.88,0.00022091,5]
[336471727,1724861489046,-500.0,0.00022091,5]
[336471728,1724861489062,-1564.33,0.00022091,5]
[336471729,1724861489071,-500.0,0.00022091,5]
[336471730,1724861489081,-500.0,0.00022091,5]
[336471731,1724861489091,-500.0,0.00022091,5]
[336471732,1724861489100,-1003.11,0.00022091,5]
[336471733,1724861489110,-1403.9,0.00022091,5]
[336471734,1724861489119,-500.0,0.00022091,5]
[336471735,1724861489130,-500.0,0.00022091,5]
[336471736,1724861489140,-500.0,0.00022119,5]
[336471737,1724861489150,-215.41250564,0.00022119,5]
[336471738,1724861489162,-1844.52,0.00022119,5]
[336471739,1724861489178,-506.13455368,0.00022119,5]
[336471740,1724861489188,-1669.64,0.00022119,5]
[336471741,1724861489199,-500.0,0.00022119,5]
[336471742,1724861489208,-621.06909077,0.00022119,5]
[336471743,1724861489219,-830.36,0.00022119,5]
[336471744,1724861489231,-500.0,0.00022119,5]
[336471745,1724861489241,-510.94,0.00022119,5]
[336471746,1724861489252,-855.87,0.00022119,5]
[336471747,1724861489262,-1514.19,0.00022119,5]
[336471748,1724861489279,-1583.58,0.00022119,5]
[336471749,1724861489290,-500.0,0.00022119,5]
[336471750,1724861489300,-500.0,0.00022119,5]
[336471751,1724861489310,-1033.16,0.00022119,5]
[336471752,1724861489322,-500.0,0.00022119,5]
[336471753,1724861489332,-501.38354752,0.00022119,5]
[336471754,1724861489343,-500.0,0.00022119,5]
[336471755,1724861489352,-1188.18,0.00022119,5]
[336471756,1724861489362,-1477.27,0.00022119,5]
[336471757,1724861489373,-1202.37,0.00022119,5]
[336471758,1724861489383,-500.0,0.0002212,5]
[336471759,1724861489393,-500.0,0.0002212,5]
[336471760,1724861489404,-500.0,0.0002212,5]
[336471761,1724861489413,-500.0,0.0002212,5]
[336471762,1724861489423,-551.68,0.0002212,5]
[336471763,1724861489434,-823.28,0.0002212,5]
[336471764,1724861489445,-409.44562213,0.0002212,5]
[336471765,1724861489455,-1111.6,0.0002212,5]
[336471766,1724861489465,-1047.6,0.0002212,5]
[336471767,1724861489475,-500.0,0.00022168,2]
[336471768,1724861489486,-500.0,0.00022181,5]
[336471769,1724861489496,-500.0,0.00022181,2]
[336471770,1724861489506,-465.97448145,0.00022181,5]
[336471771,1724861489518,-506.50791676,0.00022181,5]
[336471772,1724861489528,-975.97,0.00022181,5]
[336471773,1724861489538,-3051.82251062,0.00022191,2]
[336471774,1724861489547,-165.0,0.00022192,2]
[336471775,1724861489558,-330.6880762,0.00022192,2]
[336471776,1724861489567,-500.0,0.00022263,2]
[336471777,1724861489577,-500.0,0.00022312,5]
[336471778,1724861489587,-500.0,0.00022313,5]
[336471779,1724861489598,-4995.28,0.00022313,5]
[336471780,1724861489608,-1834.9,0.00022313,5]
[336471781,1724861489619,-1963.25,0.00022313,5]
[336471782,1724861489630,-2904.94,0.00022313,5]
[336471783,1724861489640,-7393.53,0.00022313,5]
[336471784,1724861489650,-788.02,0.00022313,5]
[336471785,1724861489660,-7405.77,0.00022313,5]
[336471786,1724861489670,-1909.51,0.00022313,5]
[336471787,1724861489679,-2303.49,0.00022313,5]
[336471788,1724861489689,-2897.7,0.00022313,5]
[336471789,1724861489698,-1046.34,0.00022313,5]
[336471790,1724861489708,-1283.62,0.00022313,5]
[336471791,1724861489717,-1871.86,0.00022313,5]
[336471792,1724861489727,-7433.18,0.00022323,5]
[336471793,1724861489736,-5212.58,0.00022323,5]
[336471794,1724861489746,-1640.83,0.00022323,5]
[336471795,1724861489756,-4365.01,0.00022323,5]
[336471796,1724861489767,-12675.43,0.00022323,5]
[336471797,1724861489777,-3008.32,0.00022323,5]
[336471798,1724861489787,-3478.62,0.00022323,5]
[336471799,1724861489797,-2000.0,0.00022324,2]
[336471800,1724861489806,-500.0,0.00022324,5]
[336471801,1724861489816,-500.0,0.00022324,5]
[336471802,1724861489826,-500.0,0.00022324,5]
[336471803,1724861489835,-891.13,0.00022324,5]
[336471804,1724861489845,-1064.58,0.00022324,5]
[336471805,1724861489854,-502.03,0.00022324,5]
[336471806,1724861489864,-963.81,0.00022324,5]
[336471807,1724861489875,-508.9992205,0.00022324,5]
[336471808,1724861489885,-449.12,0.00022324,5]
[336471809,1724861489895,-500.0,0.00022324,5]
[336471810,1724861489906,-1575.71,0.00022324,5]
[336471811,1724861489916,-500.0,0.00022324,5]
[336471812,1724861489926,-500.0,0.00022324,5]
[336471813,1724861489936,-500.0,0.00022324,5]
[336471814,1724861489946,-2441.06,0.00022324,5]
[336471815,1724861489956,-2445.65,0.00022324,5]
[336471816,1724861489965,-3605.34,0.00022324,5]
[336471817,1724861489975,-7804.01,0.00022324,5]
[336471818,1724861489984,-6989.42,0.00022324,5]
[336471819,1724861489993,-3432.15,0.00022324,5]
[336471820,1724861490003,-500.0,0.00022324,5]
[336471821,1724861490012,-931.19,0.00022324,5]
[336471822,1724861490185,-817.55,0.00022324,5]
[336471823,1724861490196,-357.54992962,0.00022324,5]
[336471824,1724861490205,-1715.86,0.00022324,5]
[336471825,1724861490215,-2215.78,0.00022324,5]
[336471826,1724861490226,-991.34,0.00022324,5]
[336471827,1724861490236,-1028.21,0.00022324,5]
[336471828,1724861490245,-1049.04,0.00022324,5]
[336471829,1724861490255,-500.0,0.00022324,5]
[336471830,1724861490267,-1574.19,0.00022324,5]
[336471831,1724861490276,-1419.19,0.00022324,5]
[336471832,1724861490286,-500.0,0.00022324,5]
[336471833,1724861490295,-3455.34,0.00022324,5]
[336471834,1724861490305,-1220.18,0.00022324,5]
[336471835,1724861490314,-787.68,0.00022324,5]
[336471836,1724861490323,-1574.41,0.00022324,5]
[336471837,1724861490334,-1161.17,0.00022324,5]
[336471838,1724861490344,-1086.03,0.00022324,5]
[336471839,1724861490355,-2104.49,0.00022324,5]
[336471840,1724861490366,-500.0,0.00022324,5]
[336471841,1724861490375,-2447.77,0.00022324,5]
[336471842,1724861490385,-2050.11,0.00022324,5]
[336471843,1724861490395,-500.0,0.00022324,5]
[336471844,1724861490404,-1938.39,0.00022324,5]
[336471845,1724861490414,-500.0,0.00022324,5]
[336471846,1724861490424,-3053.04,0.00022324,5]
[336471847,1724861490435,-500.0,0.00022324,5]
[336471848,1724861490445,-500.0,0.00022324,5]
[336471849,1724861490454,-500.0,0.00022324,5]
[336471850,1724861490464,-2059.73,0.00022324,5]
[336471851,1724861490474,-500.0,0.00022324,5]
[336471852,1724861490486,-1762.74,0.00022324,5]
[336471853,1724861490495,-500.0,0.00022324,5]
[336471854,1724861490505,-1881.79,0.00022325,5]
[336471855,1724861490514,-4789.79,0.00022325,5]
[336471856,1724861490529,-2011.7,0.00022325,5]
[336471857,1724861490539,-1624.46,0.00022325,5]
[336471858,1724861490549,-1132.43,0.00022325,5]
[336471859,1724861490559,-500.0,0.00022325,5]
[336471860,1724861490568,-606.8,0.00022365,5]
[336471861,1724861490579,-1847.91,0.00022365,5]
[336471862,1724861490588,-1019.59,0.00022365,5]
[336471863,1724861490598,-1247.82,0.00022365,5]
[336471864,1724861490607,-1867.86,0.00022365,5]
[336471865,1724861490617,-2205.0,0.00022365,5]
[336471866,1724861490627,-1306.88,0.00022365,5]
[336471867,1724861490639,-500.0,0.00022365,5]
[336471868,1724861490649,-1564.33,0.00022365,5]
[336471869,1724861490658,-484.64427794,0.00022365,5]
[336471870,1724861490668,-500.0,0.00022365,5]
[336471871,1724861490677,-500.0,0.00022365,5]
[336471872,1724861490686,-1003.11,0.00022365,5]
[336471873,1724861490698,-1403.9,0.00022365,5]
[336471874,1724861490708,-500.0,0.00022365,5]
[336471875,1724861490718,-500.0,0.00022365,5]
[336471876,1724861490728,-500.0,0.00022393,5]
[336471877,1724861490737,-1844.52,0.00022393,5]
[336471878,1724861490749,-1669.64,0.00022393,5]
[336471879,1724861490758,-500.0,0.00022393,5]
[336471880,1724861490771,-830.36,0.00022393,5]
[336471881,1724861490780,-318.27,0.00022393,5]
[336471882,1724861490790,-855.87,0.00022393,5]
[336471883,1724861490799,-1514.19,0.00022393,5]
[336471884,1724861490809,-1583.58,0.00022393,5]
[336471885,1724861490818,-500.0,0.00022393,5]
[336471886,1724861490828,-500.0,0.00022393,5]
[336471887,1724861490838,-1033.16,0.00022393,5]
[336471888,1724861490848,-500.0,0.00022393,5]
[336471889,1724861490857,-500.0,0.00022393,5]
[336471890,1724861490866,-1188.18,0.00022393,5]
[336471891,1724861490876,-1477.27,0.00022393,5]
[336471892,1724861490885,-1202.37,0.00022393,5]
[336471893,1724861490894,-289.20808754,0.00022394,5]
[336471894,1724861490903,-500.0,0.00022394,5]
[336471895,1724861490912,-500.0,0.00022394,5]
[336471896,1724861490922,-500.0,0.00022394,5]
[336471897,1724861490931,-823.28,0.00022394,5]
[336471898,1724861490941,-1111.6,0.00022394,5]
[336471899,1724861490950,-1047.6,0.00022394,5]
[336471900,1724861490959,-500.0,0.00022455,5]
[336471901,1724861490969,-500.0,0.00022455,2]
[336471902,1724861490978,-975.97,0.00022455,5]
[336471903,1724861490988,-500.0,0.00022465,2]
[336471904,1724861490997,-465.00038822,0.00022525,2]
[336471905,1724861491006,-500.0,0.00022528,2]
[336471906,1724861491018,-500.0,0.00022586,5]
[336471907,1724861491027,-500.0,0.00022587,5]
[336471908,1724861491037,-4995.28,0.00022587,5]
[336471909,1724861491046,-1834.9,0.00022587,5]
[336471910,1724861491055,-1963.25,0.00022587,5]
[336471911,1724861491064,-2904.94,0.00022587,5]
[336471912,1724861491074,-7393.53,0.00022587,5]
[336471913,1724861491083,-788.02,0.00022587,5]
[336471914,1724861491093,-7405.77,0.00022587,5]
[336471915,1724861491102,-1909.51,0.00022587,5]
[336471916,1724861491112,-2303.49,0.00022587,5]
[336471917,1724861491122,-2897.7,0.00022587,5]
[336471918,1724861491133,-1046.34,0.00022587,5]
[336471919,1724861491142,-1283.62,0.00022587,5]
[336471920,1724861491151,-1871.86,0.00022587,5]
[336471921,1724861491162,-7433.18,0.00022597,5]
[336471922,1724861491171,-5212.58,0.00022597,5]
[336471923,1724861491181,-1640.83,0.00022597,5]
[336471924,1724861491190,-4365.01,0.00022597,5]
[336471925,1724861491200,-12675.43,0.00022597,5]
[336471926,1724861491209,-3008.32,0.00022597,5]
[336471927,1724861491219,-3478.62,0.00022597,5]
[336471928,1724861491229,-216.91382665,0.00022598,5]
[336471929,1724861491239,-500.0,0.00022598,5]
[336471930,1724861491249,-500.0,0.00022598,5]
[336471931,1724861491258,-891.13,0.00022598,5]
[336471932,1724861491269,-1064.58,0.00022598,5]
[336471933,1724861491279,-502.03,0.00022598,5]
[336471934,1724861491289,-963.81,0.00022598,5]
[336471935,1724861491298,-500.0,0.00022598,5]
[336471936,1724861491307,-1575.71,0.00022598,5]
[336471937,1724861491317,-500.0,0.00022598,5]
[336471938,1724861491326,-500.0,0.00022598,5]
[336471939,1724861491336,-500.0,0.00022598,5]
[336471940,1724861491346,-2441.06,0.00022598,5]
[336471941,1724861491355,-2445.65,0.00022598,5]
[336471942,1724861491364,-3605.34,0.00022598,5]
[336471943,1724861491374,-7804.01,0.00022598,5]
[336471944,1724861491384,-6989.42,0.00022598,5]
[336471945,1724861491393,-3432.15,0.00022598,5]
[336471946,1724861491403,-500.0,0.00022598,5]
[336471947,1724861491413,-931.19,0.00022598,5]
[336471948,1724861491423,-817.55,0.00022598,5]
[336471949,1724861491435,-1715.86,0.00022598,5]
[336471950,1724861491446,-2215.78,0.00022598,5]
[336471951,1724861491456,-991.34,0.00022598,5]
[336471952,1724861491465,-1028.21,0.00022598,5]
[336471953,1724861491475,-1049.04,0.00022598,5]
[336471954,1724861491484,-500.0,0.00022598,5]
[336471955,1724861491493,-1574.19,0.00022598,5]
[336471956,1724861491502,-1419.19,0.00022598,5]
[336471957,1724861491512,-500.0,0.00022598,5]
[336471958,1724861491525,-3455.34,0.00022598,5]
[336471959,1724861491534,-1220.18,0.00022598,5]
[336471960,1724861491543,-787.68,0.00022598,5]
[336471961,1724861491553,-1574.41,0.00022598,5]
[336471962,1724861491562,-1161.17,0.00022598,5]
[336471963,1724861491571,-1086.03,0.00022598,5]
[336471964,1724861491580,-2104.49,0.00022598,5]
[336471965,1724861491590,-500.0,0.00022598,5]
[336471966,1724861491599,-2447.77,0.00022598,5]
[336471967,1724861491608,-2050.11,0.00022598,5]
[336471968,1724861491618,-500.0,0.00022598,5]
[336471969,1724861491627,-1938.39,0.00022598,5]
[336471970,1724861491637,-500.0,0.00022598,5]
[336471971,1724861491646,-3053.04,0.00022598,5]
[336471972,1724861491655,-500.0,0.00022598,5]
[336471973,1724861491664,-500.0,0.00022598,5]
[336471974,1724861491675,-203.95021782,0.00022598,5]
[336471975,1724861491684,-2059.73,0.00022598,5]
[336471976,1724861491693,-500.0,0.00022598,5]
[336471977,1724861491702,-1762.74,0.00022598,5]
[336471978,1724861491712,-500.0,0.00022598,5]
[336471979,1724861491722,-1881.79,0.00022599,5]
[336471980,1724861491732,-4789.79,0.00022599,5]
[336471981,1724861491741,-2011.7,0.00022599,5]
[336471982,1724861491750,-1624.46,0.00022599,5]
[336471983,1724861491760,-1132.43,0.00022599,5]
[336471984,1724861491772,-500.0,0.00022599,5]
[336471985,1724861491782,-500.0,0.00022629,2]
[336471986,1724861491798,-1847.91,0.00022639,5]
[336471987,1724861491808,-1019.59,0.00022639,5]
[336471988,1724861491817,-1247.82,0.00022639,5]
[336471989,1724861491827,-1867.86,0.00022639,5]
[336471990,1724861491836,-2205.0,0.00022639,5]
[336471991,1724861491846,-1306.88,0.00022639,5]
[336471992,1724861491856,-500.0,0.00022639,5]
[336471993,1724861491866,-1564.33,0.00022639,5]
[336471994,1724861491875,-500.0,0.00022639,5]
[336471995,1724861491884,-418.36498908,0.00022639,5]
[336471996,1724861491894,-1003.11,0.00022639,5]
[336471997,1724861491903,-1403.9,0.00022639,5]
[336471998,1724861491913,-533.3805481,0.00022639,5]
[336471999,1724861491923,-500.0,0.00022639,5]
[336472000,1724861491933,-500.0,0.00022667,5]
[336472001,1724861491943,-1844.52,0.00022667,5]
[336472002,1724861491954,-1669.64,0.00022667,5]
[336472003,1724861491963,-500.0,0.00022667,5]
[336472004,1724861491972,-830.36,0.00022667,5]
[336472005,1724861491982,-855.87,0.00022667,5]
[336472006,1724861491991,-1514.19,0.00022667,5]
[336472007,1724861492001,-1583.58,0.00022667,5]
[336472008,1724861492010,-500.0,0.00022667,5]
[336472009,1724861492026,-500.0,0.00022667,5]
[336472010,1724861492036,-1033.16,0.00022667,5]
[336472011,1724861492049,-500.0,0.00022667,5]
[336472012,1724861492058,-500.0,0.00022667,5]
[336472013,1724861492068,-1188.18,0.00022667,5]
[336472014,1724861492077,-1477.27,0.00022667,5]
[336472015,1724861492086,-1202.37,0.00022667,5]
[336472016,1724861492095,-500.0,0.00022668,5]
[336472017,1724861492104,-500.0,0.00022668,5]
[336472018,1724861492113,-584.56,0.00022668,5]
[336472019,1724861492123,-823.28,0.00022668,5]
[336472020,1724861492137,-1111.6,0.00022668,5]
[336472021,1724861492147,-1047.6,0.00022668,5]
[336472022,1724861492156,-150.0,0.00022683,2]
[336472023,1724861492166,-522.0,0.00022683,2]
[336472024,1724861492176,-1012.24206773,0.00022685,2]
[336472025,1724861492187,-500.0,0.00022729,5]
[336472026,1724861492198,-500.0,0.00022729,2]
[336472027,1724861492210,-975.97,0.00022729,5]
[336472028,1724861492220,-500.0,0.00022736,2]
[336472029,1724861492230,-500.0,0.0002286,5]
[336472030,1724861492240,-500.0,0.00022861,5]
[336472031,1724861492249,-4995.28,0.00022861,5]
[336472032,1724861492258,-1834.9,0.00022861,5]
[336472033,1724861492271,-1963.25,0.00022861,5]
[336472034,1724861492283,-2904.94,0.00022861,5]
[336472035,1724861492292,-7393.53,0.00022861,5]
[336472036,1724861492302,-788.02,0.00022861,5]
[336472037,1724861492311,-7405.77,0.00022861,5]
[336472038,1724861492321,-1909.51,0.00022861,5]
[336472039,1724861492331,-2303.49,0.00022861,5]
[336472040,1724861492341,-2897.7,0.00022861,5]
[336472041,1724861492350,-1046.34,0.00022861,5]
[336472042,1724861492359,-1283.62,0.00022861,5]
[336472043,1724861492369,-1871.86,0.00022861,5]
[336472044,1724861492379,-7433.18,0.00022871,5]
[336472045,1724861492389,-5212.58,0.00022871,5]
[336472046,1724861492399,-1640.83,0.00022871,5]
[336472047,1724861492408,-4365.01,0.00022871,5]
[336472048,1724861492418,-12675.43,0.00022871,5]
[336472049,1724861492427,-3008.32,0.00022871,5]
[336472050,1724861492438,-3478.62,0.00022871,5]
[336472051,1724861492448,-500.0,0.00022872,5]
[336472052,1724861492457,-500.0,0.00022872,5]
[336472053,1724861492466,-891.13,0.00022872,5]
[336472054,1724861492476,-1064.58,0.00022872,5]
[336472055,1724861492486,-502.03,0.00022872,5]
[336472056,1724861492495,-963.81,0.00022872,5]
[336472057,1724861492505,-500.0,0.00022872,5]
[336472058,1724861492519,-1575.71,0.00022872,5]
[336472059,1724861492529,-500.0,0.00022872,5]
[336472060,1724861492538,-247.75,0.00022872,5]
[336472061,1724861492548,-2441.06,0.00022872,5]
[336472062,1724861492558,-2445.65,0.00022872,5]
[336472063,1724861492567,-3605.34,0.00022872,5]
[336472064,1724861492577,-7804.01,0.00022872,5]
[336472065,1724861492586,-6989.42,0.00022872,5]
[336472066,1724861492595,-3432.15,0.00022872,5]
[336472067,1724861492605,-450.03453034,0.00022872,5]
[336472068,1724861492615,-931.19,0.00022872,5]
[336472069,1724861492626,-817.55,0.00022872,5]
[336472070,1724861492636,-1715.86,0.00022872,5]
[336472071,1724861492645,-2215.78,0.00022872,5]
[336472072,1724861492655,-991.34,0.00022872,5]
[336472073,1724861492664,-1028.21,0.00022872,5]
[336472074,1724861492673,-1049.04,0.00022872,5]
[336472075,1724861492683,-500.0,0.00022872,5]
[336472076,1724861492693,-1574.19,0.00022872,5]
[336472077,1724861492702,-1419.19,0.00022872,5]
[336472078,1724861492712,-283.33,0.00022872,5]
[336472079,1724861492723,-3455.34,0.00022872,5]
[336472080,1724861492732,-1220.18,0.00022872,5]
[336472081,1724861492741,-787.68,0.00022872,5]
[336472082,1724861492751,-1574.41,0.00022872,5]
[336472083,1724861492761,-1161.17,0.00022872,5]
[336472084,1724861492774,-1086.03,0.00022872,5]
[336472085,1724861492785,-2104.49,0.00022872,5]
[336472086,1724861492795,-500.0,0.00022872,5]
[336472087,1724861492805,-2447.77,0.00022872,5]
[336472088,1724861492815,-2050.11,0.00022872,5]
[336472089,1724861492825,-500.0,0.00022872,5]
[336472090,1724861492834,-1938.39,0.00022872,5]
[336472091,1724861492844,-500.0,0.00022872,5]
[336472092,1724861492853,-3053.04,0.00022872,5]
[336472093,1724861492864,-500.0,0.00022872,5]
[336472094,1724861492873,-500.0,0.00022872,5]
[336472095,1724861492882,-2059.73,0.00022872,5]
[336472096,1724861492891,-500.0,0.00022872,5]
[336472097,1724861492899,-1762.74,0.00022872,5]
[336472098,1724861492909,-500.0,0.00022872,5]
[336472099,1724861492918,-1881.79,0.00022873,5]
[336472100,1724861493113,-4789.79,0.00022873,5]
[336472101,1724861493125,-2011.7,0.00022873,5]
[336472102,1724861493137,-1624.46,0.00022873,5]
[336472103,1724861493147,-1132.43,0.00022873,5]
[336472104,1724861493157,-500.0,0.00022873,5]
[336472105,1724861493170,-240.66,0.000229,31]
[336472106,1724861493180,-240.66,0.000229,31]
[336472107,1724861493190,-240.66,0.000229,31]
[336472108,1724861493200,-240.66,0.000229,31]
[336472109,1724861493211,-240.66,0.000229,31]
[336472110,1724861493221,-240.66,0.000229,31]
[336472111,1724861493230,-240.66,0.000229,31]
[336472112,1724861493244,-240.66,0.000229,31]
[336472113,1724861493254,-240.66,0.000229,31]
[336472114,1724861493264,-240.66,0.000229,31]
[336472115,1724861493275,-240.66,0.000229,31]
[336472116,1724861493285,-240.66,0.000229,31]
[336472117,1724861493295,-240.66,0.000229,31]
[336472118,1724861493304,-240.66,0.000229,31]
[336472119,1724861493314,-240.66,0.000229,31]
[336472120,1724861493324,-240.66,0.000229,31]
[336472121,1724861493334,-1847.91,0.00022913,5]
[336472122,1724861493344,-1019.59,0.00022913,5]
[336472123,1724861493353,-1247.82,0.00022913,5]
[336472124,1724861493363,-1867.86,0.00022913,5]
[336472125,1724861493372,-2205.0,0.00022913,5]
[336472126,1724861493382,-1306.88,0.00022913,5]
[336472127,1724861493391,-266.65,0.00022913,5]
[336472128,1724861493400,-1564.33,0.00022913,5]
[336472129,1724861493410,-500.0,0.00022913,5]
[336472130,1724861493420,-1003.11,0.00022913,5]
[336472131,1724861493430,-1403.9,0.00022913,5]
[336472132,1724861493441,-500.0,0.00022913,5]
[336472133,1724861493451,-500.0,0.00022926,2]
[336472134,1724861493461,-500.0,0.00022941,5]
[336472135,1724861493471,-1844.52,0.00022941,5]
[336472136,1724861493481,-1669.64,0.00022941,5]
[336472137,1724861493491,-500.0,0.00022941,5]
[336472138,1724861493501,-830.36,0.00022941,5]
[336472139,1724861493510,-855.87,0.00022941,5]
[336472140,1724861493530,-1514.19,0.00022941,5]
[336472141,1724861493540,-1583.58,0.00022941,5]
[336472142,1724861493551,-500.0,0.00022941,5]
[336472143,1724861493561,-500.0,0.00022941,5]
[336472144,1724861493572,-1033.16,0.00022941,5]
[336472145,1724861493583,-500.0,0.00022941,5]
[336472146,1724861493594,-500.0,0.00022941,5]
[336472147,1724861493605,-1188.18,0.00022941,5]
[336472148,1724861493615,-1477.27,0.00022941,5]
[336472149,1724861493624,-1202.37,0.00022941,5]
[336472150,1724861493635,-500.0,0.00022942,5]
[336472151,1724861493645,-500.0,0.00022942,5]
[336472152,1724861493656,-823.28,0.00022942,5]
[336472153,1724861493666,-1111.6,0.00022942,5]
[336472154,1724861493676,-1047.6,0.00022942,5]
[336472155,1724861493686,-1000.0,0.00023,23]
[336472156,1724861493696,-200.0,0.00023,2]
[336472157,1724861493706,-304.96285326,0.00023,2]
[336472158,1724861493715,-500.0,0.00023003,5]
[336472159,1724861493726,-181.47134222,0.00023003,2]
[336472160,1724861493736,-975.97,0.00023003,5]
[336472161,1724861493746,-165.0,0.00023014,2]
[336472162,1724861493757,-954.12079214,0.00023083,2]
[336472163,1724861493770,-500.0,0.00023134,5]
[336472164,1724861493780,-225.47795429,0.00023135,5]
[336472165,1724861493790,-4995.28,0.00023135,5]